Cogmind - Beta 13 @@@ ROGUE MODE // 2024.03.20 @ 21:20:15 Player: Moya Result: Destroyed by Y-45 Defender with Beam Rifle Performance ------------- Evolutions (2) 1000 Regions Visited (5) 1000 Robots Destroyed (45) 225 Value Destroyed (1349) 1349 Prototype IDs (1) 20 Alien Tech Used (0) 0 Bonus (0) 0 TOTAL SCORE: 3594 Bonus ------- None Cogmind --------- Core Integrity 0/550 Matter 295/300 Energy 85/125 System Corruption 0% Temperature Cool (26) Movement Walking (130) Location -8/Storage Parts ------- > --- POWER (2) -------- Light Ion Engine > --- PROPULSION (2) --- Titanium Leg > --- UTILITY (4) ------ Small Storage Unit Visual Processing Unit Improved Sensor Array Improved Signal Interpreter > --- WEAPON (3) ------- Shock Rifle > --- INVENTORY (8) ---- Armored Treads Improved Terrain Scanner Mining Laser Stasis Trap (100%) Peak State ------------ > --- POWER ------------ Light Deuterium Engine Light Nuclear Core > --- PROPULSION ------- Armored Treads Titanium Leg > --- UTILITY ---------- Improved Heat Sink Small Storage Unit Visual Processing Unit Drone Bay > --- WEAPON ----------- Beam Rifle Particle Gun Particle Gun > --- INVENTORY -------- Light Nuclear Core Light Nuclear Core Light Treads Improved Sensor Array Improved Terrain Scanner Light Armor Plating Mining Laser Stasis Trap [Rating: 30] Favorites ----------- Power Light Nuclear Core Engine Heavy Ion Engine Power Core Light Nuclear Core Propulsion Light Treads Treads Light Treads Leg Titanium Leg Wheel Wheel Utility Small Storage Unit Device Heat Sink Storage Small Storage Unit Processor Targeting Computer Protection Light Armor Plating Weapon Particle Gun Energy Gun Particle Gun Energy Cannon Heavy Particle Cannon Ballistic Gun Assault Rifle Launcher Grenade Launcher Build | -11 -10 -9 -9 -8 -8 ------- Run | Yrd Mat Mat Min Mat Sto Slots Evolved 4 | . . 2 . 2 . Power 1 | . . . . 1 . Propulsion . | . . . . . . Utility 2 | . . 1 . 1 . Weapon 1 | . . 1 . . . Parts Attached 64 | 8 7 10 . 25 14 Power 12 | 1 . 2 . 5 4 Engine 6 | 1 . 2 . 1 2 Core 6 | . . . . 4 2 Reactor . | . . . . . . Propulsion 12 | 2 2 . . 5 3 Treads 5 | 2 . . . 3 . Leg 5 | . . . . 2 3 Wheel 2 | . 2 . . . . Hover . | . . . . . . Flight . | . . . . . . Utility 20 | 3 3 3 . 6 5 Device 12 | 2 2 2 . 3 3 Storage 2 | 1 . . . 1 . Processor 3 | . . 1 . 1 1 Hackware . | . . . . . . Protection 3 | . 1 . . 1 1 Artifact . | . . . . . . Weapon 20 | 2 2 5 . 9 2 Energy Gun 11 | 1 2 2 . 4 2 Energy Cannon 2 | . . . . 2 . Ballistic Gun 5 | 1 . 2 . 2 . Ballistic Cannon . | . . . . . . Launcher 2 | . . 1 . 1 . Special Weapon . | . . . . . . Impact Weapon . | . . . . . . Slashing Weapon . | . . . . . . Piercing Weapon . | . . . . . . Special Melee Weapon . | . . . . . . Unidentified Prototypes 1 | . . 1 . . . Parts Lost 25 | . . . 1 13 11 Power 5 | . . . . 2 3 Propulsion 3 | . . . 1 1 1 Utility 6 | . . . . 3 3 Weapon 11 | . . . . 7 4 Highest Loss Streak 12 | . . . 1 12 5 To Critical Strikes . | . . . . . . Average Slot Usage (%) 91 | . 93 99 91 82 91 Engine 9 | . 14 11 11 9 4 Core 5 | . . . . 5 12 Treads 7 | . 16 . . 2 10 Leg 3 | . . . . 3 7 Wheel 7 | . 8 22 14 4 . Device 11 | . 8 11 11 11 14 Storage 11 | . 14 11 11 12 9 Processor 7 | . . 9 11 6 9 Protection 1 | . 3 . . 2 1 Energy Gun 15 | . 13 20 11 11 19 Ballistic Gun 10 | . 14 12 22 11 2 Naked Turns . | . . . . . . Heaviest Build 31 | 15 18 22 22 31 31 Greatest Support 40 | 40 40 20 20 40 40 Greatest Overweight (x) 6 | . . 1 2 6 1 Average Overweight (x) . | . . . 1 2 . Largest Inventory Capacity 8 | 8 8 8 8 8 8 Average Capacity 7 | 7 8 8 8 8 8 Most Carried 8 | 5 8 8 8 8 8 Average Carried 6 | 2 6 6 7 6 6 Final Capacity 8 | 8 8 8 8 8 8 Final Carried 8 | 5 6 8 8 8 4 Class Distribution -------------------- 34% | Mutant 21% | Gunner 15% | Scavenger-Skirmisher 12% | Scavenger-Gunner 9% | Scavenger-Tank 6% | Scavenger-Mutant Dominant Class ---------------- Mutant | -10/Materials Scavenger-Gunner | -9/Materials Gunner | -9/Mines Gunner | -8/Materials Scavenger-Skirmisher | -8/Storage Resources | -11 -10 -9 -9 -8 -8 ----------- Run | Yrd Mat Mat Min Mat Sto Matter Collected 1243 | 222 163 166 56 389 247 Remotely . | . . . . . . Salvage Created 1462 | 34 163 256 55 425 529 Parts 89 | 7 10 25 5 25 17 Haulers Intercepted 1 | . . 1 . . . Recyclers Shooed . | . . . . . . Parts Field Recycled . | . . . . . . Retrieved Matter . | . . . . . . Parts Self-Destructed . | . . . . . . Prevented . | . . . . . . Kills | -11 -10 -9 -9 -8 -8 ------- Run | Yrd Mat Mat Min Mat Sto Combat Hostiles Destroyed 34 | . 4 8 4 8 10 Guns 24 | . 4 4 4 5 7 Cannons 1 | . . . . 1 . AOE 6 | . . 4 . 2 . Classes Destroyed 9 | 1 1 4 . 3 . Worker 4 | . . . . 3 1 Builder 1 | . . . . 1 . Tunneler 2 | 2 . . . . . Hauler 1 | . . 1 . . . Watcher 3 | . . 1 . 1 1 Swarmer 8 | . . 4 4 . . Grunt 19 | . 4 2 . 6 7 Duelist 1 | . . . . 1 . Sentry 6 | . . 2 . 1 3 Best Kill Streak 7 | 1 2 7 3 6 3 Combat Bots Only 6 | . 2 6 3 4 2 Max Kills in Single Turn 3 | 1 1 3 1 2 1 Gunslinging . | . . . . . . Exploded 2 | . . 2 . 1 . Melee . | . . . . . . Uniques/NPCs Destroyed . | . . . . . . Combat | -11 -10 -9 -9 -8 -8 -------- Run | Yrd Mat Mat Min Mat Sto Hostile Shots Fired 309 | . 19 23 13 123 131 Missed 89 | . 5 10 3 31 40 Damage Taken 3248 | . 160 149 113 1464 1362 Core 638 | . 50 6 25 366 191 Absorbed by Shields . | . . . . . . Core Remaining (%) 90 | 100 80 . 92 . . Volleys Fired 135 | 4 16 10 8 49 48 Largest 3 | 2 2 3 3 3 3 Hottest 191 | 70 85 144 99 191 186 Shots Fired 315 | 8 29 21 24 116 117 Gun 286 | 8 29 18 24 90 117 Cannon 20 | . . . . 20 . Launcher 9 | . . 3 . 6 . Special . | . . . . . . Kinetic 97 | 4 16 10 16 45 6 Thermal 205 | 4 13 8 8 65 107 Explosive 9 | . . 3 . 6 . Electromagnetic 4 | . . . . . 4 Robot Hit Streak 12 | 1 5 7 8 6 12 Robot Miss Streak 6 | 2 2 2 3 6 3 Penetration Max . | . . . . . . Secondary Targets 1 | . 1 . . . . Max Gunslinging Chain 1 | . 1 . . . . Shots Hit Robots 193 | 3 22 14 12 61 81 Core Hits 82 | 2 9 17 4 29 21 Critical Kills 1 | . . 1 . . . Critical Parts Destroyed . | . . . . . . Critical Strikes 12 | . . 1 . 1 10 Burn 11 | . . . . 1 10 Destroy 1 | . . 1 . . . Melee Attacks . | . . . . . . Impact . | . . . . . . Slashing . | . . . . . . Piercing . | . . . . . . Sneak Attacks . | . . . . . . Combat Hostiles . | . . . . . . Follow-up Attacks . | . . . . . . Damage Inflicted 3434 | 35 289 410 176 1252 1272 Guns 2666 | 35 280 172 172 747 1260 Cannons 160 | . . . . 160 . Explosions 583 | . . 238 . 345 . Melee . | . . . . . . Ramming 25 | . 9 . 4 . 12 Kinetic 745 | 10 167 99 128 315 26 Thermal 2021 | 25 113 73 44 592 1174 Explosive 583 | . . 238 . 345 . Electromagnetic 60 | . . . . . 60 Impact . | . . . . . . Slashing . | . . . . . . Piercing . | . . . . . . Highest Corruption 2 | . 2 . . . . Average Corruption 2 | . 2 . . . . Corruption Purged . | . . . . . . Corruption Blocked . | . . . . . . Effects 1 | . 1 . . . . Message Errors 1 | . 1 . . . . Overload Shots . | . . . . . . Overflow Damage . | . . . . . . Projectiles . | . . . . . . Explosions . | . . . . . . Melee . | . . . . . . Knockbacks 1 | . 1 . . . . Impact 1 | . 1 . . . . Kinetic . | . . . . . . Secondary . | . . . . . . Self-Inflicted Damage 75 | . 4 12 2 57 . Shots 4 | . . 1 . 3 . Rammed 3 | . 2 . 1 . . Targets Rammed 6 | . 2 . 1 1 2 Kicked 3 | . . . . 1 2 Crushed . | . . . . . . Highest Temperature 683 | 27 158 54 12 656 683 Average Temperature 186 | 12 63 28 5 193 241 Received Heat Transfer 1791 | . 90 27 . 837 837 Effects 50 | . . . . 15 35 Shutdowns 14 | . . . . 3 11 Energy Bleed 6 | . . . . 1 5 Interference 14 | . . . . 4 10 Matter Decay 4 | . . . . 2 2 Short Circuit 4 | . . . . 2 2 Damage (minor) 2 | . . . . 1 1 Damage (major) 6 | . . . . 2 4 Siege Activations . | . . . . . . Robots Corrupted . | . . . . . . Combat Hostiles . | . . . . . . Parts Fried . | . . . . . . Impact Corruptions . | . . . . . . Robots Melted 3 | . . . . . 3 Combat Hostiles 3 | . . . . . 3 Parts Melted 7 | . . . . . 7 Heat Transferred 5661 | 74 296 185 111 1406 3589 Parts Sabotaged . | . . . . . . Parts Stolen . | . . . . . . Parts Stripped . | . . . . . . Power Chain Reactions . | . . . . . . Alert | -11 -10 -9 -9 -8 -8 ------- Run | Yrd Mat Mat Min Mat Sto Peak Influence 260 | 10 131 260 196 255 126 Initial 101 | . 6 8 101 76 32 Average 80 | 3 55 114 153 127 48 Maximum Alert Level 1 | . . 1 . 1 . Low Security (%) 91 | 100 100 82 100 71 100 Level 1 8 | . . 17 . 28 . Level 2 . | . . . . . . Level 3 . | . . . . . . Level 4 . | . . . . . . Level 5 . | . . . . . . High Security . | . . . . . . Max Security . | . . . . . . Squads Dispatched 5 | . 1 . . 2 2 Investigation . | . . . . . . Extermination . | . . . . . . Reinforcement 4 | . 1 . . 2 1 Assault . | . . . . . . Garrison 1 | . . . . . 1 Intercept . | . . . . . . Searches Triggered . | . . . . . . Construction Impeded 2 | . . . . 2 . Haulers Reinforced . | . . . . . . Active Scanning Responses . | . . . . . . Cargo Convoy Interrupts . | . . . . . . Stealth | -11 -10 -9 -9 -8 -8 --------- Run | Yrd Mat Mat Min Mat Sto Distress Signals 2 | . . . 1 . 1 Communications Jammed . | . . . . . . Distress Signals . | . . . . . . Times Spotted 54 | . 7 9 6 13 19 Peak Tracking Total 5 | . 2 5 3 4 5 Tactical Retreats 4 | . . . 1 . 3 Traps | -11 -10 -9 -9 -8 -8 ------- Run | Yrd Mat Mat Min Mat Sto Traps Triggered 1 | . 1 . . . . Indirectly . | . . . . . . Trap Hack Attempts . | . . . . . . Triggered . | . . . . . . Disarmed . | . . . . . . Reprogrammed . | . . . . . . Reused . | . . . . . . Traps Extracted . | . . . . . . Installed . | . . . . . . Triggered . | . . . . . . Most Traps Carried 1 | . . . 1 1 1 Machines | -11 -10 -9 -9 -8 -8 ---------- Run | Yrd Mat Mat Min Mat Sto Machines Disabled 3 | . 1 . . 2 . Max in Single Turn 1 | . 1 . . 1 . Machines Repaired . | . . . . . . Machines Dismantled . | . . . . . . Machines Sabotaged . | . . . . . . Overloaded Fab Kills . | . . . . . . Hacking | -11 -10 -9 -9 -8 -8 --------- Run | Yrd Mat Mat Min Mat Sto Machines Accessed 2 | . . . . 1 1 Terminals 2 | . . . . 1 1 Fabricators . | . . . . . . Repair Stations . | . . . . . . Recycling Units . | . . . . . . Scanalyzers . | . . . . . . Garrison Access . | . . . . . . Total Hacks 3 | . . . . 2 1 Successful 3 | . . . . 2 1 Failed . | . . . . . . Catastrophic . | . . . . . . Database Lockouts . | . . . . . . Manual . | . . . . . . Terminals 3 | . . . . 2 1 Fabricators . | . . . . . . Repair Stations . | . . . . . . Recycling Units . | . . . . . . Scanalyzers . | . . . . . . Garrison Access . | . . . . . . Terminal Hacks 3 | . . . . 2 1 Record 2 | . . . . 2 . Open Door 1 | . . . . . 1 Fabricator Hacks . | . . . . . . Repair Station Hacks . | . . . . . . Recycling Unit Hacks . | . . . . . . Scanalyzer . | . . . . . . Garrison Access Hacks . | . . . . . . Unauthorized Hacks . | . . . . . . Terminals . | . . . . . . Fabricators . | . . . . . . Repair Stations . | . . . . . . Recycling Units . | . . . . . . Scanalyzers . | . . . . . . Garrison Access . | . . . . . . Data Cores Recovered . | . . . . . . Used . | . . . . . . Hacking Detections . | . . . . . . Full Trace Events . | . . . . . . Feedback Events . | . . . . . . Feedback Blocked . | . . . . . . Robot Schematics Acquired . | . . . . . . Robots Built . | . . . . . . Authchips . | . . . . . . Time . | . . . . . . Total Robot Build Rating . | . . . . . . Part Schematics Acquired . | . . . . . . Parts Built . | . . . . . . Authchips . | . . . . . . Time . | . . . . . . Total Part Build Rating . | . . . . . . Parts Repaired . | . . . . . . Time . | . . . . . . Parts Recycled . | . . . . . . Recycled Matter . | . . . . . . Retrieved Matter . | . . . . . . Retrieved Components . | . . . . . . Parts Scanalyzed . | . . . . . . Part Schematics Acquired . | . . . . . . Parts Damaged . | . . . . . . Bothacking | -11 -10 -9 -9 -8 -8 ------------ Run | Yrd Mat Mat Min Mat Sto Used RIF Installer . | . . . . . . Robots Hacked . | . . . . . . Non-combat . | . . . . . . Combat . | . . . . . . Robot Hacks Applied . | . . . . . . Relay Couplers Released . | . . . . . . Fabnet Peak Effective % . | . . . . . . Robots Rewired . | . . . . . . Allies Hacked . | . . . . . . Hacks Repelled . | . . . . . . Allies | -11 -10 -9 -9 -8 -8 -------- Run | Yrd Mat Mat Min Mat Sto Total Allies . | . . . . . . Largest Group . | . . . . . . Highest-Rated Group . | . . . . . . Highest-Rated Ally . | . . . . . . Total Orders 3 | . . . . . 3 ROAM 1 | . . . . . 1 FOLLOW 1 | . . . . . 1 EXPLORE 1 | . . . . . 1 Ally Attacks . | . . . . . . Total Damage . | . . . . . . Kills . | . . . . . . Allies Corrupted . | . . . . . . Allies Melted . | . . . . . . Intel | -11 -10 -9 -9 -8 -8 ------- Run | Yrd Mat Mat Min Mat Sto Robot Analysis Total . | . . . . . . Derelict Logs Recovered 1 | . . . 1 . . Drone Launches 21 | . . . . . 21 Drone Recoveries 7 | . . . . . 7 Exploration | -11 -10 -9 -9 -8 -8 ------------- Run | Yrd Mat Mat Min Mat Sto Turns Passed 2716 | 258 476 354 282 540 806 Spaces Moved 1647 | 131 333 335 240 240 368 Core 10 | 5 . . . 5 . Treads 561 | 126 183 . . 38 214 Legs 207 | . . . . 53 154 Wheels 869 | . 150 335 240 144 . Hover . | . . . . . . Flight . | . . . . . . Fastest Speed 50 | 50 80 80 95 120 130 Average Speed 126 | 155 123 90 105 142 154 Slowest Speed 350 | 160 160 95 110 350 250 Overloaded Moves . | . . . . . . Propulsion Burnouts . | . . . . . . Robots Hopped . | . . . . . . Cave-ins Triggered . | . . . . . . Exploration Rate (%) 27 | 6 34 23 44 13 42 Regions Visited 5 Branch Regions 2 Pre-discovered Areas . | . . . . . . Known Exits Taken . | . . . . . . Unknown Exits Taken 5 | 1 1 1 1 1 . Scrap Searched 1 | . . . 1 . . Spaces Dug . | . . . . . . Terrain Destroyed 66 | . . 21 . 45 . Melee . | . . . . . . Projectile 5 | . . . . 5 . AOE 61 | . . 21 . 40 . Terrain Rammed . | . . . . . . Walls Destroyed . | . . . . . . Machines Disabled . | . . . . . . Actions | -11 -10 -9 -9 -8 -8 --------- Run | Yrd Mat Mat Min Mat Sto Total 2002 | 174 367 368 250 334 509 Wait 99 | 27 . . . 10 62 Move 1642 | 130 332 334 239 239 368 Hop . | . . . . . . Pick Up 22 | 4 4 6 1 6 1 Fast Attach 27 | 8 2 2 . 10 5 Attach 16 | . 3 1 . 8 4 Detach 5 | 1 2 . . . 2 Swap 21 | . 2 7 . 7 5 Drop 22 | . 4 8 1 4 5 Fire 135 | 4 16 10 8 49 48 Melee . | . . . . . . Ram 3 | . 2 . 1 . . Kick 3 | . . . . 1 2 Crush . | . . . . . . Escape Stasis . | . . . . . . Rewire . | . . . . . . Trap . | . . . . . . Miscellaneous 7 | . . . . . 7 Route ------- -11/Scrapyard -10/Materials -9/Materials -9/Mines (discovered 2 exits: *Mat / [*Zio]) -8/Materials -8/Storage History --------- Turn | Location | Event 13 | -11/Scrapyard | Discovered new exit (range 16) 259 | -11/Scrapyard | Entered Materials 304 | -10/Materials | Build established: Mutant 666 | -10/Materials | Discovered new exit (range 16) 735 | -10/Materials | Entered another Materials area 735 | -9/Materials | Evolved 2 slots: Utility x1, Weapon x1 1038 | -9/Materials | Discovered new exit (range 16) 1089 | -9/Materials | Entered Mines 1107 | -9/Mines | Found a hidden stash of uninstalled traps 1114 | -9/Mines | A Derelict revealed a hidden shortcut to a safe place 1225 | -9/Mines | Assembled infested the area 1230 | -9/Mines | Assisted by a Guerilla fighting off Assembled 1328 | -9/Mines | Build established: Gunner 1340 | -9/Mines | Learned Materials garrison access intel 1352 | -9/Mines | Discovered new exit (range 14) 1371 | -9/Mines | Entered Materials 1371 | -8/Materials | Evolved 2 slots: Power x1, Utility x1 1372 | -8/Materials | Loaded intel: 1 garrison access location 1671 | -8/Materials | Core integrity fell below 50% 1729 | -8/Materials | Lost 12 parts (2p1n2u7w) 1874 | -8/Materials | Discovered new exit (range 11) 1911 | -8/Materials | Entered Storage 2049 | -8/Storage | Garrison activated, responded to threat 2169 | -8/Storage | Lost 11 allies 2591 | -8/Storage | Core integrity fell below 20% 2631 | -8/Storage | Lost 5 parts (1p1u3w) 2717 | -8/Storage | Destroyed by Y-45 Defender with Beam Rifle Last Messages --------------- 02603_ Critical hit (Burn: +37). 02604_ R-06 Scavenger collects Carbon-fiber Leg. 02606_ K-01 Serf collects debris. 02611_ U-05 Engineer builds a Door. 02612_ Kicked K-01 Serf out of the way. 02612_ K-01 Serf destroyed. 02617_ R-06 Scavenger collects Sml. Matter Pod. 02618_ R-06 Scavenger collects Wheel. 02621_ Kicked K-01 Serf. 02677_ Acquired Imp. Signal Interpreter. 02681_ Imp. Heat Sink destroyed. 02683_ U-05 Engineer destroyed. 02685_ Acquired Lgt. Ion Engine. 02688_ Acquired 12 matter. 02705_ Critical hit (Burn: +37). 02707_ Acquired 13 matter. 02708_ Titanium Leg destroyed. 02710_ Acquired Shock Rifle. 02713_ Lgt. Nuclear Core destroyed. 02713_ Y-45 Defender destroyed. Map ----- +----------------------------------------------------+ | ????????????? ????????????????????????????????? | | ????????????? #????????????????????????????????? | | ????????????# #????????????????????????????????? | | ????????????# #????????????????????????????????? | | ????????????# #????????????????????????????????? | | ????????????# #????????????????????????????????? | | ????????????# #????????????????????????????????? | | ????????????# #????????????????????????????????? | | ??########### #????????????????????????????????? | | ??# # #????????????????????????????????? | | ??# # #????????????????????????????????? | | ??# # #????????????????????????????????? | | ??# + +????????????????????????????????? | | ??# # #????????????????????????????????? | | ### # #????????????????????????????????? | | + # #????????????????????????????????? | | # # #????????????????????????????????? | | ##/######## #????????????????????????????????? | | % #??????#####????????????????????????????????? | | #??#####????????????????????????w???????????? | | # [ #????????????????????????????????????? | | % + #????????????????????????????????????? | | #???????????????????????????????????????????? | | # = #?????????##########?????????????????? | | + ]] #????????## #?????????????????? | | ###### #????????# @ """#?????????????????? | | #?????##############?## [% """#?????????????????? | | ??????????# ! #??#[%* """#?????????????????? | | ????####### ! #??#=! """#?????????????????? | | ##### # #??#" """#?????????????????? | | ^ # % #??#T #?????????????????? | | / #??#" #?????????????????? | | # #??# Y #?????????????????? | | ##### # =########Y######## #????????? | | ###### ## + #????????? | | ## ## !####### +????? | | !## ###########???###+######+## ####?????? | | ## #?????????????# #????#????????? | | ## #?????????????#""" #?????????????? | | ## #?????????????#"R == #?????????????? | | ## #?????????????#""" = #?????????????? | | ## #?????????????# #?????????????? | | ## #?????????????# +?????????????? | | ## ##????????????# = #?????????????? | | +#### #????????????##"T"########?????????????? | | % #?????????????#"""#????????????????????? | | #?????????????#####????????????????????? | | #??????????????????????????????????????? | | ##### #??????????????????????????????????????? | | ??#####/#####????????????????????????????????????? | +----------------------------------------------------+ Best States ------------- Heat Dissipation 51 Energy Generation 23 Energy Capacity 460 Matter Stores 300 Matter Capacity 450 Sight Range 18 Robot Scan Range 15 Terrain Scan Range 16 Terrain Scan Density 10 Armor Coverage 150 Evasion (%) 55 Targeting Accuracy 5 Recoil Reduction 2 Item Schematics ----------------- None Robot Schematics ------------------ None Fabricated ------------ Nothing Alien Tech Used ----------------- None Achievements -------------- Release The Drones! Challenges ------------ None Game ------ Seed CombatReinforcedMachine Manual? 0 Play Time 00:29:26 Cumulative 16.1 hours Start 2024.03.20 @ 20:30:11 End 2024.03.20 @ 21:20:15 Sessions 3 Manual Loads 0 Difficulty Rogue Special Mode None Game No. 17 Rogue 10 Adventurer 7 Explorer 0 Win Type - Total 0 Types 0/0/0/0/0/0/0/0/0 Lore% 16 Gallery% 26 Achievement% 18 Wizard Run 0 Options --------- Layout 1 ASCII 0 Keyboard 1 Movement Vi Keybinds 0 Fullscreen 1 Font 32/Tamsyn Map View 77x35 Zoom Use 70% Tactical HUD 1 Map Filters NONE Filters NONE Steam 1 RUN: 14f92791-0113-4371-a488-4caab143b9e9